[Event "Titled Tuesday Blitz July 25 Late 2023"]
[White "Alexikov, Alexander"]
[Black "Carrasco Miranda, Andres"]
[WhiteFideId "14103958"]
[BlackFideId "3405990"]
[WhiteElo "2194"]
[BlackElo "2430"]
[Result "0-1"]
[Round "11"]
[TimeControl "180+2"]
[Date "2023.07.25"]
[WhiteClock "0:00:00"]
[BlackClock "0:00:02"]
[Board "108"]

1. e4 {[%clk 0:03:00]}  e5 {[%clk 0:02:57]} 2. Nf3 {[%clk 0:03:00]}  Nc6 {[%clk 0:02:57]} 3. c3 {[%clk 0:03:00]}  d5 {[%clk 0:02:30]} 4. Qa4 {[%clk 0:02:58]}  f6 {[%clk 0:02:08]} 5. Bb5 {[%clk 0:02:55]}  Ne7 {[%clk 0:02:04]} 6. exd5 {[%clk 0:02:55]}  Qxd5 {[%clk 0:02:02]} 7. d4 {[%clk 0:02:55]}  e4 {[%clk 0:01:57]} 8. c4 {[%clk 0:02:53]}  Qd8 {[%clk 0:01:54]} 9. Nfd2 {[%clk 0:02:52]}  Kf7 {[%clk 0:01:43]} 10. d5 {[%clk 0:02:32]}  Nd4 {[%clk 0:01:38]} 11. Nxe4 {[%clk 0:02:05]}  a6 {[%clk 0:01:13]} 12. Qd1 {[%clk 0:01:50]}  Nxb5 {[%clk 0:00:55]} 13. cxb5 {[%clk 0:01:47]}  Qxd5 {[%clk 0:00:55]} 14. Nbc3 {[%clk 0:01:41]}  Qxd1+ {[%clk 0:00:53]} 15. Kxd1 {[%clk 0:01:41]}  Bf5 {[%clk 0:00:41]} 16. Bf4 {[%clk 0:01:20]}  axb5 {[%clk 0:00:35]} 17. Bxc7 {[%clk 0:01:17]}  b4 {[%clk 0:00:15]} 18. Nd6+ {[%clk 0:01:13]}  Kg6 {[%clk 0:00:16]} 19. Ne2 {[%clk 0:00:56]}  Nd5 {[%clk 0:00:11]} 20. Nxf5 {[%clk 0:00:54]}  Kxf5 {[%clk 0:00:08]} 21. Bg3 {[%clk 0:00:48]}  b3 {[%clk 0:00:07]} 22. a3 {[%clk 0:00:44]}  Bc5 {[%clk 0:00:06]} 23. Rc1 {[%clk 0:00:36]}  b6 {[%clk 0:00:06]} 24. Rc4 {[%clk 0:00:33]}  Rhd8 {[%clk 0:00:05]} 25. Kc1 {[%clk 0:00:30]}  Rac8 {[%clk 0:00:05]} 26. Kb1 {[%clk 0:00:29]}  g5 {[%clk 0:00:03]} 27. h4 {[%clk 0:00:25]}  h6 {[%clk 0:00:03]} 28. hxg5 {[%clk 0:00:22]}  hxg5 {[%clk 0:00:04]} 29. Rhc1 {[%clk 0:00:14]}  Rc6 {[%clk 0:00:03]} 30. Nd4+ {[%clk 0:00:12]}  Bxd4 {[%clk 0:00:03]} 31. Rxc6 {[%clk 0:00:12]}  Be5 {[%clk 0:00:03]} 32. Bxe5 {[%clk 0:00:09]}  fxe5 {[%clk 0:00:04]} 33. Re1 {[%clk 0:00:07]}  Nf4 {[%clk 0:00:04]} 34. g3 {[%clk 0:00:05]}  Nd3 {[%clk 0:00:03]} 35. Re2 {[%clk 0:00:05]}  e4 {[%clk 0:00:02]} 36. Rc3 {[%clk 0:00:00]}  Rh8 {[%clk 0:00:02]} 0-1


[Site "https://www.chess.com"]

[Event "Titled Tuesday Blitz July 25 Late 2023"]
[White "Vafin, Ayrat"]
[Black "dorpato"]
[WhiteFideId "4146530"]
[WhiteElo "2194"]
[BlackElo "2026"]
[Result "0-1"]
[Round "11"]
[TimeControl "180+2"]
[Date "2023.07.25"]
[WhiteClock "0:00:11"]
[BlackClock "0:00:13"]
[Board "113"]

1. d4 {[%clk 0:03:00]}  d5 {[%clk 0:02:59]} 2. Bf4 {[%clk 0:03:01]}  Nf6 {[%clk 0:02:58]} 3. e3 {[%clk 0:03:01]}  g6 {[%clk 0:02:53]} 4. c4 {[%clk 0:02:58]}  c6 {[%clk 0:02:48]} 5. Nc3 {[%clk 0:02:57]}  Bg7 {[%clk 0:02:44]} 6. h3 {[%clk 0:02:57]}  b6 {[%clk 0:02:39]} 7. Nf3 {[%clk 0:02:56]}  Bb7 {[%clk 0:02:39]} 8. Be2 {[%clk 0:02:56]}  Nbd7 {[%clk 0:02:32]} 9. O-O {[%clk 0:02:56]}  O-O {[%clk 0:02:31]} 10. b4 {[%clk 0:02:53]}  c5 {[%clk 0:02:14]} 11. dxc5 {[%clk 0:02:39]}  bxc5 {[%clk 0:02:11]} 12. bxc5 {[%clk 0:02:30]}  Nxc5 {[%clk 0:01:56]} 13. Rb1 {[%clk 0:02:20]}  Bc6 {[%clk 0:01:49]} 14. Ne5 {[%clk 0:02:08]}  Bd7 {[%clk 0:00:51]} 15. Bf3 {[%clk 0:01:54]}  Nce4 {[%clk 0:00:41]} 16. Nxd7 {[%clk 0:01:20]}  Nxc3 {[%clk 0:00:28]} 17. Qd2 {[%clk 0:00:59]}  Nxd7 {[%clk 0:00:19]} 18. Rb3 {[%clk 0:00:39]}  Ne4 {[%clk 0:00:19]} 19. Qd3 {[%clk 0:00:29]}  Ndc5 {[%clk 0:00:18]} 20. Qxd5 {[%clk 0:00:22]}  Nd7 {[%clk 0:00:18]} 21. Qxe4 {[%clk 0:00:18]}  Nc5 {[%clk 0:00:17]} 22. Qxa8 {[%clk 0:00:16]}  Qxa8 {[%clk 0:00:17]} 23. Bxa8 {[%clk 0:00:17]}  Nxb3 {[%clk 0:00:18]} 24. Bd5 {[%clk 0:00:14]}  Nd2 {[%clk 0:00:17]} 25. Rd1 {[%clk 0:00:13]}  Bc3 {[%clk 0:00:17]} 26. e4 {[%clk 0:00:12]}  e6 {[%clk 0:00:17]} 27. Bxd2 {[%clk 0:00:11]}  Bxd2 {[%clk 0:00:16]} 28. Rxd2 {[%clk 0:00:12]}  exd5 {[%clk 0:00:16]} 29. exd5 {[%clk 0:00:12]}  Rc8 {[%clk 0:00:16]} 30. Rc2 {[%clk 0:00:12]}  Kf8 {[%clk 0:00:16]} 31. Kf1 {[%clk 0:00:13]}  Ke7 {[%clk 0:00:17]} 32. Ke2 {[%clk 0:00:13]}  Kd6 {[%clk 0:00:17]} 33. Kd3 {[%clk 0:00:14]}  Kc5 {[%clk 0:00:18]} 34. a3 {[%clk 0:00:12]}  Rb8 {[%clk 0:00:18]} 35. Kc3 {[%clk 0:00:12]}  Rb1 {[%clk 0:00:18]} 36. Re2 {[%clk 0:00:11]}  Ra1 {[%clk 0:00:18]} 37. Kb3 {[%clk 0:00:10]}  Rb1+ {[%clk 0:00:18]} 38. Kc2 {[%clk 0:00:10]}  Ra1 {[%clk 0:00:18]} 39. Kb2 {[%clk 0:00:10]}  Rf1 {[%clk 0:00:16]} 40. g3 {[%clk 0:00:11]}  Kxc4 {[%clk 0:00:15]} 41. d6 {[%clk 0:00:06]}  Rd1 {[%clk 0:00:16]} 42. Rc2+ {[%clk 0:00:05]}  Kb5 {[%clk 0:00:15]} 43. Rc7 {[%clk 0:00:03]}  Rxd6 {[%clk 0:00:15]} 44. Rxf7 {[%clk 0:00:03]}  Rd2+ {[%clk 0:00:13]} 45. Kc3 {[%clk 0:00:04]}  Ra2 {[%clk 0:00:13]} 46. Rxh7 {[%clk 0:00:04]}  Rxa3+ {[%clk 0:00:13]} 47. Kb2 {[%clk 0:00:03]}  Ra6 {[%clk 0:00:13]} 48. Rg7 {[%clk 0:00:03]}  Kc5 {[%clk 0:00:09]} 49. Rc7+ {[%clk 0:00:03]}  Kd5 {[%clk 0:00:10]} 50. Rd7+ {[%clk 0:00:03]}  Ke5 {[%clk 0:00:10]} 51. Re7+ {[%clk 0:00:03]}  Kd4 {[%clk 0:00:10]} 52. Re3 {[%clk 0:00:03]}  Rb6+ {[%clk 0:00:10]} 53. Ka2 {[%clk 0:00:03]}  a5 {[%clk 0:00:10]} 54. Rb3 {[%clk 0:00:03]}  Rc6 {[%clk 0:00:10]} 55. Rf3 {[%clk 0:00:02]}  Rb6 {[%clk 0:00:08]} 56. Re3 {[%clk 0:00:02]}  a4 {[%clk 0:00:08]} 57. h4 {[%clk 0:00:02]}  Rb5 {[%clk 0:00:08]} 58. Rf3 {[%clk 0:00:02]}  Rc5 {[%clk 0:00:08]} 59. Rf4+ {[%clk 0:00:03]}  Ke5 {[%clk 0:00:08]} 60. Rxa4 {[%clk 0:00:03]}  Rc2+ {[%clk 0:00:08]} 61. Kb3 {[%clk 0:00:04]}  Rxf2 {[%clk 0:00:09]} 62. Rg4 {[%clk 0:00:03]}  Kf5 {[%clk 0:00:09]} 63. Rb4 {[%clk 0:00:02]}  Rf3+ {[%clk 0:00:09]} 64. Ka4 {[%clk 0:00:03]}  Rxg3 {[%clk 0:00:10]} 65. Kb5 {[%clk 0:00:03]}  Rg4 {[%clk 0:00:10]} 66. Rb3 {[%clk 0:00:01]}  Rxh4 {[%clk 0:00:10]} 67. Rb1 {[%clk 0:00:01]}  Re4 {[%clk 0:00:10]} 68. Rf1+ {[%clk 0:00:01]}  Kg4 {[%clk 0:00:09]} 69. Rg1+ {[%clk 0:00:01]}  Kh5 {[%clk 0:00:09]} 70. Rh1+ {[%clk 0:00:02]}  Rh4 {[%clk 0:00:09]} 71. Rg1 {[%clk 0:00:02]}  g5 {[%clk 0:00:09]} 72. Kc6 {[%clk 0:00:02]}  Re4 {[%clk 0:00:08]} 73. Rf1 {[%clk 0:00:02]}  g4 {[%clk 0:00:08]} 74. Rf8 {[%clk 0:00:03]}  Kh4 {[%clk 0:00:07]} 75. Rh8+ {[%clk 0:00:03]}  Kg3 {[%clk 0:00:08]} 76. Rg8 {[%clk 0:00:03]}  Kf3 {[%clk 0:00:08]} 77. Kd5 {[%clk 0:00:04]}  Re2 {[%clk 0:00:06]} 78. Rf8+ {[%clk 0:00:04]}  Kg2 {[%clk 0:00:06]} 79. Rg8 {[%clk 0:00:03]}  g3 {[%clk 0:00:07]} 80. Kd4 {[%clk 0:00:03]}  Kf2 {[%clk 0:00:07]} 81. Kd3 {[%clk 0:00:03]}  Re7 {[%clk 0:00:06]} 82. Rf8+ {[%clk 0:00:03]}  Kg1 {[%clk 0:00:06]} 83. Rg8 {[%clk 0:00:03]}  g2 {[%clk 0:00:07]} 84. Rg3 {[%clk 0:00:03]}  Kh2 {[%clk 0:00:06]} 85. Rg8 {[%clk 0:00:02]}  g1=Q {[%clk 0:00:07]} 86. Rh8+ {[%clk 0:00:03]}  Kg2 {[%clk 0:00:07]} 87. Rg8+ {[%clk 0:00:03]}  Kf1 {[%clk 0:00:08]} 88. Rf8+ {[%clk 0:00:03]}  Qf2 {[%clk 0:00:08]} 89. Rxf2+ {[%clk 0:00:03]}  Kxf2 {[%clk 0:00:09]} 90. Kd4 {[%clk 0:00:03]}  Kf3 {[%clk 0:00:09]} 91. Kd5 {[%clk 0:00:04]}  Kf4 {[%clk 0:00:09]} 92. Kd6 {[%clk 0:00:04]}  Re1 {[%clk 0:00:10]} 93. Kd5 {[%clk 0:00:05]}  Re2 {[%clk 0:00:09]} 94. Kd4 {[%clk 0:00:05]}  Rd2+ {[%clk 0:00:09]} 95. Kc3 {[%clk 0:00:06]}  Rd8 {[%clk 0:00:10]} 96. Kc4 {[%clk 0:00:06]}  Ke4 {[%clk 0:00:10]} 97. Kc5 {[%clk 0:00:07]}  Rd1 {[%clk 0:00:10]} 98. Kc4 {[%clk 0:00:07]}  Rc1+ {[%clk 0:00:10]} 99. Kb3 {[%clk 0:00:07]}  Rc8 {[%clk 0:00:10]} 100. Kb4 {[%clk 0:00:07]}  Kd5 {[%clk 0:00:11]} 101. Kb3 {[%clk 0:00:06]}  Kd4 {[%clk 0:00:11]} 102. Kb2 {[%clk 0:00:06]}  Kd3 {[%clk 0:00:12]} 103. Kb3 {[%clk 0:00:07]}  Rb8+ {[%clk 0:00:12]} 104. Ka4 {[%clk 0:00:08]}  Kc3 {[%clk 0:00:11]} 105. Ka5 {[%clk 0:00:09]}  Kc4 {[%clk 0:00:12]} 106. Ka6 {[%clk 0:00:09]}  Kc5 {[%clk 0:00:12]} 107. Ka7 {[%clk 0:00:10]}  Rb3 {[%clk 0:00:12]} 108. Ka6 {[%clk 0:00:10]}  Rb1 {[%clk 0:00:12]} 109. Ka7 {[%clk 0:00:10]}  Kc6 {[%clk 0:00:12]} 110. Ka8 {[%clk 0:00:11]}  Kc7 {[%clk 0:00:12]} 111. Ka7 {[%clk 0:00:11]}  Ra1# {[%clk 0:00:13]} 0-1